fUSD/lending_fUSD_20250110
["ID","MTS","AMOUNT","RATE_DAILY","PERIOD"]
[348446980,1736532390802,-168.193475,9.278e-05,2]
[348446981,1736532390831,-500.0,9.278e-05,2]
[348446982,1736532390858,-561.91,9.278e-05,2]
[348446983,1736532390887,-500.0,9.278e-05,2]
[348446984,1736532390915,-500.0,9.278e-05,2]
[348446985,1736532390945,-787.93,9.278e-05,2]
[348446986,1736532390975,-1079.39,9.278e-05,2]
[348446987,1736532391008,-558.89609874,9.279e-05,2]
[348446988,1736532391036,-580.36,9.279e-05,2]
[348446989,1736532391065,-500.0,9.279e-05,2]
[348446990,1736532391093,-500.0,9.279e-05,2]
[348446991,1736532391121,-611.87989329,9.279e-05,2]
[348446992,1736532391149,-500.0,9.279e-05,2]
[348446993,1736532391178,-500.0,9.279e-05,2]
[348446994,1736532391206,-500.0,9.279e-05,2]
[348446995,1736532391238,-531.85,9.279e-05,2]
[348446996,1736532391266,-500.0,9.279e-05,2]
[348446997,1736532391294,-500.0,9.279e-05,2]
[348446998,1736532391321,-500.0,9.279e-05,2]
[348446999,1736532391348,-500.0,9.279e-05,2]
[348447000,1736532391374,-500.0,9.279e-05,2]
[348447001,1736532391402,-500.0,9.279e-05,2]
[348447002,1736532391430,-500.0,9.279e-05,2]
[348447003,1736532391457,-500.0,9.279e-05,2]
[348447004,1736532391486,-500.0,9.279e-05,2]
[348447005,1736532391512,-500.0,9.279e-05,2]
[348447006,1736532391538,-500.0,9.279e-05,2]
[348447007,1736532391564,-500.0,9.279e-05,2]
[348447008,1736532391591,-500.0,9.279e-05,2]
[348447009,1736532391618,-500.0,9.279e-05,2]
[348447010,1736532391644,-500.0,9.279e-05,2]
[348447011,1736532391671,-500.0,9.279e-05,2]
[348447012,1736532391697,-500.0,9.279e-05,2]
[348447013,1736532391723,-500.0,9.279e-05,2]
[348447014,1736532391754,-500.0,9.279e-05,2]
[348447015,1736532391780,-500.0,9.279e-05,2]
[348447016,1736532391808,-500.0,9.279e-05,2]
[348447017,1736532391835,-500.0,9.279e-05,2]
[348447018,1736532391861,-519.69,9.279e-05,2]
[348447019,1736532391887,-500.0,9.279e-05,2]
[348447020,1736532391912,-500.0,9.279e-05,2]
[348447021,1736532391939,-500.0,9.279e-05,2]
[348447022,1736532391965,-500.0,9.279e-05,2]
[348447023,1736532391993,-500.0,9.279e-05,2]
[348447024,1736532392019,-500.0,9.279e-05,2]
[348447025,1736532392049,-500.0,9.279e-05,2]
[348447026,1736532392078,-502.98,9.279e-05,2]
[348447027,1736532392104,-500.0,9.279e-05,2]
[348447028,1736532392131,-500.0,9.279e-05,2]
[348447029,1736532392549,-500.0,9.279e-05,2]
[348447030,1736532392586,-500.0,9.279e-05,2]
[348447031,1736532392609,-500.0,9.279e-05,2]
[348447032,1736532392634,-500.0,9.279e-05,2]
[348447033,1736532392658,-500.0,9.279e-05,2]
[348447034,1736532392681,-526.93,9.279e-05,2]
[348447035,1736532392704,-500.0,9.279e-05,2]
[348447036,1736532392728,-500.0,9.279e-05,2]
[348447037,1736532392756,-500.0,9.279e-05,2]
[348447038,1736532392779,-500.0,9.279e-05,2]
[348447039,1736532392805,-500.0,9.279e-05,2]
[348447040,1736532392829,-500.0,9.279e-05,2]
[348447041,1736532392853,-500.0,9.279e-05,2]
[348447042,1736532392878,-500.0,9.279e-05,2]
[348447043,1736532392904,-500.0,9.279e-05,2]
[348447044,1736532392927,-500.0,9.279e-05,2]
[348447045,1736532392951,-500.0,9.279e-05,2]
[348447046,1736532392974,-500.0,9.279e-05,2]
[348447047,1736532393001,-505.49551626,9.279e-05,2]
[348447048,1736532393027,-500.0,9.279e-05,2]
[348447049,1736532393055,-500.0,9.279e-05,2]
[348447050,1736532393081,-500.0,9.279e-05,2]
[348447051,1736532393107,-500.0,9.279e-05,2]
[348447052,1736532393132,-500.0,9.279e-05,2]
[348447053,1736532393157,-496.18,9.279e-05,2]
[348447054,1736532393186,-500.0,9.279e-05,2]
[348447055,1736532393211,-500.0,9.279e-05,2]
[348447056,1736532393239,-500.0,9.279e-05,2]
[348447057,1736532393265,-500.0,9.279e-05,2]
[348447058,1736532393291,-500.0,9.279e-05,2]
[348447059,1736532393317,-500.0,9.279e-05,2]
[348447060,1736532393344,-500.0,9.279e-05,2]
[348447061,1736532393369,-527.0,9.279e-05,2]
[348447062,1736532393393,-500.0,9.279e-05,2]
[348447063,1736532393416,-376.50601829,9.279e-05,2]
[348447064,1736532393441,-500.0,9.279e-05,2]
[348447065,1736532393466,-500.0,9.279e-05,2]
[348447066,1736532393494,-500.0,9.279e-05,2]
[348447067,1736532393519,-500.0,9.279e-05,2]
[348447068,1736532393543,-500.0,9.279e-05,2]
[348447069,1736532393568,-500.0,9.279e-05,2]
[348447070,1736532393592,-500.0,9.279e-05,2]
[348447071,1736532393616,-500.0,9.279e-05,2]
[348447072,1736532393639,-501.60384002,9.279e-05,2]
[348447073,1736532393664,-624.19126082,9.279e-05,2]
[348447074,1736532393690,-500.0,9.279e-05,2]
[348447075,1736532393714,-500.0,9.279e-05,2]
[348447076,1736532393741,-533.72,9.279e-05,2]
[348447077,1736532393766,-500.0,9.279e-05,2]
[348447078,1736532393792,-500.0,9.279e-05,2]
[348447079,1736532393816,-500.0,9.279e-05,2]
[348447080,1736532393842,-500.0,9.279e-05,2]
[348447081,1736532393866,-500.0,9.279e-05,2]
[348447082,1736532393890,-505.72,9.279e-05,2]
[348447083,1736532393915,-500.0,9.279e-05,2]
[348447084,1736532393939,-500.0,9.279e-05,2]
[348447085,1736532393963,-500.0,9.279e-05,2]
[348447086,1736532393988,-500.0,9.279e-05,2]
[348447087,1736532394014,-687.16,9.279e-05,2]
[348447088,1736532394038,-500.0,9.279e-05,2]
[348447089,1736532394064,-500.0,9.279e-05,2]
[348447090,1736532394088,-500.0,9.279e-05,2]
[348447091,1736532394112,-715.91,9.279e-05,2]
[348447092,1736532394138,-500.0,9.279e-05,2]
[348447093,1736532394162,-579.06,9.279e-05,2]
[348447094,1736532394206,-500.0,9.279e-05,2]
[348447095,1736532394236,-500.0,9.279e-05,2]
[348447096,1736532394268,-500.0,9.279e-05,2]
[348447097,1736532394296,-500.0,9.279e-05,2]
[348447098,1736532394326,-2023.16,9.279e-05,2]
[348447099,1736532394352,-500.0,9.279e-05,2]
[348447100,1736532394381,-1012.94,9.279e-05,2]
[348447101,1736532394409,-566.09,9.279e-05,2]
[348447102,1736532394437,-500.0,9.279e-05,2]
[348447103,1736532394466,-2231.49,9.279e-05,2]
[348447104,1736532394496,-882.57,9.279e-05,2]
[348447105,1736532394523,-500.0,9.279e-05,2]
[348447106,1736532394550,-500.0,9.279e-05,2]
[348447107,1736532394583,-500.0,9.279e-05,2]
[348447108,1736532394615,-1979.37,9.279e-05,2]
[348447109,1736532394646,-2055.51,9.279e-05,2]
[348447110,1736532394673,-500.0,9.28e-05,2]
[348447111,1736532394702,-418.57257689,9.28e-05,2]
[348447112,1736532394730,-500.0,9.28e-05,2]
[348447113,1736532394766,-556.09,9.28e-05,2]
[348447114,1736532394794,-500.0,9.28e-05,2]
[348447115,1736532394821,-500.0,9.28e-05,2]
[348447116,1736532394859,-556.91,9.28e-05,2]
[348447117,1736532394890,-500.0,9.28e-05,2]
[348447118,1736532394923,-500.0,9.28e-05,2]
[348447119,1736532394955,-500.0,9.28e-05,2]
[348447120,1736532394994,-500.0,9.28e-05,2]
[348447121,1736532395026,-500.0,9.28e-05,2]
[348447122,1736532395067,-500.0,9.28e-05,2]
[348447123,1736532395098,-683.85,9.281e-05,2]
[348447124,1736532395130,-500.0,9.281e-05,2]
[348447125,1736532395161,-587.6,9.281e-05,2]
[348447126,1736532395197,-1490.17,9.281e-05,2]
[348447127,1736532395229,-691.43,9.281e-05,2]
[348447128,1736532395264,-655.43,9.281e-05,2]
[348447129,1736532395292,-510.86,9.281e-05,2]
[348447130,1736532395322,-500.0,9.281e-05,2]
[348447131,1736532395351,-579.17,9.281e-05,2]
[348447132,1736532395379,-500.0,9.281e-05,2]
[348447133,1736532395406,-500.0,9.281e-05,2]
[348447134,1736532395433,-554.48,9.281e-05,2]
[348447135,1736532395461,-500.0,9.281e-05,2]
[348447136,1736532395497,-879.1,9.281e-05,2]
[348447137,1736532395527,-500.0,9.282e-05,2]
[348447138,1736532395556,-500.0,9.282e-05,2]
[348447139,1736532395583,-500.0,9.282e-05,2]
[348447140,1736532395612,-1105.58,9.282e-05,2]
[348447141,1736532395642,-500.0,9.282e-05,2]
[348447142,1736532395670,-500.0,9.282e-05,2]
[348447143,1736532395698,-829.69,9.282e-05,2]
[348447144,1736532395726,-526.98,9.282e-05,2]
[348447145,1736532395766,-853.59,9.282e-05,2]
[348447146,1736532395795,-500.0,9.282e-05,2]
[348447147,1736532395825,-1000.0,9.282e-05,2]
[348447148,1736532395853,-534.89,9.282e-05,2]
[348447149,1736532395880,-500.0,9.282e-05,2]
[348447150,1736532395910,-1310.65,9.282e-05,2]
[348447151,1736532395946,-1028.3,9.283e-05,2]
[348447152,1736532395982,-500.0,9.283e-05,2]
[348447153,1736532396025,-713.44,9.283e-05,2]
[348447154,1736532396060,-614.22,9.283e-05,2]
[348447155,1736532396091,-788.59,9.283e-05,2]
[348447156,1736532396121,-1004.56,9.283e-05,2]
[348447157,1736532396156,-791.55,9.283e-05,2]
[348447158,1736532396190,-8694.99,9.283e-05,2]
[348447159,1736532396220,-499.99,9.283e-05,2]
[348447160,1736532396258,-2258.26,9.283e-05,2]
[348447161,1736532396289,-996.89,9.283e-05,2]
[348447162,1736532396323,-1008.65,9.283e-05,2]
[348447163,1736532396354,-1667.47,9.283e-05,2]
[348447164,1736532396384,-17558.02,9.445e-05,2]
[348447165,1736532396412,-2500.0,9.452e-05,2]
[348447166,1736532396441,-5000.0,9.453e-05,2]
[348447167,1736532396475,-1160.17,9.551e-05,2]
[348447168,1736532396510,-511.12073607,9.551e-05,2]
[348447169,1736532396540,-500.0,9.551e-05,2]
[348447170,1736532396570,-1432.74,9.551e-05,2]
[348447171,1736532396844,-500.0,9.551e-05,2]
[348447172,1736532396925,-1053.37,9.551e-05,2]
[348447173,1736532396954,-500.0,9.551e-05,2]
[348447174,1736532396982,-625.57,9.551e-05,2]
[348447175,1736532397018,-850.15,9.551e-05,2]
[348447176,1736532397055,-500.0,9.551e-05,2]
[348447177,1736532397087,-500.0,9.551e-05,2]
[348447178,1736532397122,-656.87,9.551e-05,2]
[348447179,1736532397153,-500.0,9.551e-05,2]
[348447180,1736532397190,-500.0,9.551e-05,2]
[348447181,1736532397225,-983.8,9.551e-05,2]
[348447182,1736532397258,-711.072659,9.552e-05,2]
[348447183,1736532397301,-500.0,9.552e-05,2]
[348447184,1736532397330,-589.794467,9.552e-05,2]
[348447185,1736532397363,-1980.22,9.552e-05,2]
[348447186,1736532397393,-523.24,9.552e-05,2]
[348447187,1736532397422,-500.0,9.552e-05,2]
[348447188,1736532397451,-500.0,9.552e-05,2]
[348447189,1736532397478,-500.0,9.552e-05,2]
[348447190,1736532397506,-500.0,9.552e-05,2]
[348447191,1736532397535,-514.16064555,9.552e-05,2]
[348447192,1736532397562,-512.35,9.552e-05,2]
[348447193,1736532397588,-500.0,9.552e-05,2]
[348447194,1736532397616,-500.0,9.552e-05,2]
[348447195,1736532397644,-500.0,9.552e-05,2]
[348447196,1736532397669,-500.0,9.552e-05,2]
[348447197,1736532397696,-500.0,9.552e-05,2]
[348447198,1736532397723,-1786.01,9.552e-05,2]
[348447199,1736532397753,-500.0,9.552e-05,2]
[348447200,1736532397780,-500.0,9.552e-05,2]
[348447201,1736532397807,-500.0,9.552e-05,2]
[348447202,1736532397834,-500.0,9.552e-05,2]
[348447203,1736532397862,-500.0,9.552e-05,2]
[348447204,1736532397888,-500.0,9.552e-05,2]
[348447205,1736532397914,-500.0,9.552e-05,2]
[348447206,1736532397945,-500.0,9.552e-05,2]
[348447207,1736532397973,-500.0,9.552e-05,2]
[348447208,1736532398002,-500.0,9.552e-05,2]
[348447209,1736532398028,-500.0,9.552e-05,2]
[348447210,1736532398057,-500.0,9.552e-05,2]
[348447211,1736532398082,-500.0,9.552e-05,2]
[348447212,1736532398108,-500.0,9.552e-05,2]
[348447213,1736532398133,-500.0,9.552e-05,2]
[348447214,1736532398159,-408.6393886,9.552e-05,2]
[348447215,1736532398188,-500.0,9.552e-05,2]
[348447216,1736532398216,-500.0,9.552e-05,2]
[348447217,1736532398246,-501.57172581,9.552e-05,2]
[348447218,1736532398276,-500.0,9.552e-05,2]
[348447219,1736532398303,-500.0,9.552e-05,2]
[348447220,1736532398331,-502.23755502,9.552e-05,2]
[348447221,1736532398359,-500.0,9.552e-05,2]
[348447222,1736532398386,-500.0,9.552e-05,2]
[348447223,1736532398413,-500.0,9.552e-05,2]
[348447224,1736532398440,-500.0,9.552e-05,2]
[348447225,1736532398466,-500.0,9.552e-05,2]
[348447226,1736532398496,-500.0,9.552e-05,2]
[348447227,1736532398520,-500.0,9.552e-05,2]
[348447228,1736532398546,-500.0,9.552e-05,2]
[348447229,1736532398574,-500.0,9.552e-05,2]
[348447230,1736532398609,-500.0,9.552e-05,2]
[348447231,1736532398635,-500.0,9.552e-05,2]
[348447232,1736532398661,-500.0,9.552e-05,2]
[348447233,1736532398687,-500.0,9.552e-05,2]
[348447234,1736532398712,-500.0,9.552e-05,2]
[348447235,1736532398740,-863.29,9.552e-05,2]
[348447236,1736532398765,-263.33071964,9.552e-05,2]
[348447237,1736532398791,-500.0,9.552e-05,2]
[348447238,1736532398819,-500.0,9.552e-05,2]
[348447239,1736532398844,-500.0,9.552e-05,2]
[348447240,1736532398869,-500.0,9.552e-05,2]
[348447241,1736532398895,-500.0,9.552e-05,2]
[348447242,1736532398919,-500.0,9.552e-05,2]
[348447243,1736532398945,-500.0,9.552e-05,2]
[348447244,1736532398969,-188.06320289,9.552e-05,2]
[348447245,1736532399001,-500.0,9.552e-05,2]
[348447246,1736532399026,-500.0,9.552e-05,2]
[348447247,1736532399054,-500.0,9.552e-05,2]
[348447248,1736532399079,-500.0,9.552e-05,2]
[348447249,1736532399104,-500.0,9.552e-05,2]
[348447250,1736532399130,-500.0,9.552e-05,2]
[348447251,1736532399154,-501.10502491,9.552e-05,2]
[348447252,1736532399179,-321.2462397,9.552e-05,2]
[348447253,1736532399207,-500.0,9.552e-05,2]
[348447254,1736532399232,-500.0,9.552e-05,2]
[348447255,1736532399261,-500.0,9.552e-05,2]
[348447256,1736532399288,-500.0,9.552e-05,2]
[348447257,1736532399316,-500.0,9.552e-05,2]
[348447258,1736532399342,-500.0,9.552e-05,2]
[348447259,1736532399369,-500.0,9.552e-05,2]
[348447260,1736532399394,-500.0,9.552e-05,2]
[348447261,1736532399420,-500.0,9.552e-05,2]
[348447262,1736532399446,-500.0,9.552e-05,2]
[348447263,1736532399474,-500.0,9.552e-05,2]
[348447264,1736532399502,-500.0,9.552e-05,2]
[348447265,1736532399527,-500.0,9.552e-05,2]
[348447266,1736532399551,-504.19334368,9.552e-05,2]
[348447267,1736532399576,-500.0,9.552e-05,2]
[348447268,1736532399601,-500.0,9.552e-05,2]
[348447269,1736532399627,-500.0,9.552e-05,2]
[348447270,1736532399651,-500.0,9.552e-05,2]
[348447271,1736532399677,-658.71,9.552e-05,2]
[348447272,1736532399701,-502.26274566,9.552e-05,2]
[348447273,1736532399725,-502.84639591,9.552e-05,2]
[348447274,1736532399752,-501.63380709,9.552e-05,2]
[348447275,1736532399778,-500.0,9.552e-05,2]
[348447276,1736532399803,-500.0,9.552e-05,2]
[348447277,1736532399828,-500.0,9.552e-05,2]
[348447278,1736532399853,-500.0,9.552e-05,2]
[348447279,1736532399881,-500.0,9.552e-05,2]
[348447280,1736532399908,-500.0,9.552e-05,2]
[348447281,1736532399933,-182.57665735,9.552e-05,2]
[348447282,1736532399958,-500.0,9.552e-05,2]
[348447283,1736532400066,-500.0,9.552e-05,2]
[348447284,1736532400092,-500.0,9.552e-05,2]
[348447285,1736532400116,-502.50354954,9.552e-05,2]
[348447286,1736532400141,-500.0,9.552e-05,2]
[348447287,1736532400167,-500.0,9.552e-05,2]
[348447288,1736532400199,-500.0,9.552e-05,2]
[348447289,1736532400226,-500.0,9.552e-05,2]
[348447290,1736532400251,-500.0,9.552e-05,2]
[348447291,1736532400276,-500.0,9.552e-05,2]
[348447292,1736532400301,-500.0,9.552e-05,2]
[348447293,1736532400325,-504.38567085,9.552e-05,2]
[348447294,1736532400350,-180.86600646,9.552e-05,2]
[348447295,1736532400373,-516.04,9.552e-05,2]
[348447296,1736532400397,-500.0,9.552e-05,2]
[348447297,1736532400421,-500.0,9.552e-05,2]
[348447298,1736532400445,-504.16928516,9.552e-05,2]
[348447299,1736532400469,-500.0,9.552e-05,2]
[348447300,1736532400497,-541.66,9.552e-05,2]
[348447301,1736532400521,-500.0,9.552e-05,2]
[348447302,1736532400545,-500.0,9.552e-05,2]
[348447303,1736532400569,-336.19433242,9.552e-05,2]
[348447304,1736532400592,-500.0,9.552e-05,2]
[348447305,1736532400615,-500.0,9.552e-05,2]
[348447306,1736532400639,-651.09,9.552e-05,2]
[348447307,1736532400664,-500.0,9.552e-05,2]
[348447308,1736532400689,-503.69,9.552e-05,2]
[348447309,1736532400713,-500.0,9.552e-05,2]
[348447310,1736532400740,-2044.71,9.552e-05,2]
[348447311,1736532400765,-312.49045624,9.552e-05,2]
[348447312,1736532400789,-500.0,9.552e-05,2]
[348447313,1736532400815,-500.0,9.552e-05,2]
[348447314,1736532400840,-502.22329701,9.552e-05,2]
[348447315,1736532400864,-500.0,9.552e-05,2]
[348447316,1736532400888,-500.0,9.552e-05,2]
[348447317,1736532400914,-500.0,9.552e-05,2]
[348447318,1736532400937,-500.0,9.552e-05,2]
[348447319,1736532400961,-503.34519273,9.552e-05,2]
[348447320,1736532400984,-500.0,9.552e-05,2]
[348447321,1736532401011,-500.0,9.552e-05,2]
[348447322,1736532401038,-514.76,9.552e-05,2]
[348447323,1736532401062,-500.0,9.552e-05,2]
[348447324,1736532401090,-534.63,9.552e-05,2]
[348447325,1736532401113,-500.0,9.552e-05,2]
[348447326,1736532401140,-500.0,9.552e-05,2]
[348447327,1736532401164,-284.63962489,9.552e-05,2]
[348447328,1736532401191,-595.22498261,9.552e-05,2]
[348447329,1736532401217,-2048.63,9.552e-05,2]
[348447330,1736532401243,-500.0,9.552e-05,2]
[348447331,1736532401268,-500.0,9.552e-05,2]
[348447332,1736532401294,-619.5,9.552e-05,2]
[348447333,1736532401319,-515.05,9.552e-05,2]
[348447334,1736532401343,-615.27,9.552e-05,2]
[348447335,1736532401368,-500.0,9.552e-05,2]
[348447336,1736532401391,-257.53741879,9.552e-05,2]
[348447337,1736532401413,-501.8622855,9.552e-05,2]
[348447338,1736532401438,-500.0,9.552e-05,2]
[348447339,1736532401463,-512.5,9.552e-05,2]
[348447340,1736532401487,-1442.3,9.552e-05,2]
[348447341,1736532401514,-500.0,9.552e-05,2]
[348447342,1736532401537,-500.0,9.552e-05,2]
[348447343,1736532401560,-500.0,9.552e-05,2]
[348447344,1736532401583,-500.0,9.552e-05,2]
[348447345,1736532401608,-500.0,9.552e-05,2]
[348447346,1736532401634,-3985.15,9.552e-05,2]
[348447347,1736532401658,-500.0,9.552e-05,2]
[348447348,1736532401682,-500.0,9.552e-05,2]
[348447349,1736532401705,-500.0,9.552e-05,2]
[348447350,1736532401728,-500.0,9.552e-05,2]
[348447351,1736532401755,-646.18079167,9.552e-05,2]
[348447352,1736532401780,-500.0,9.552e-05,2]
[348447353,1736532401805,-500.0,9.552e-05,2]
[348447354,1736532401832,-441.23252965,9.552e-05,2]
[348447355,1736532401857,-500.0,9.552e-05,2]
[348447356,1736532401882,-561.91,9.552e-05,2]
[348447357,1736532401908,-500.0,9.552e-05,2]
[348447358,1736532401934,-500.0,9.552e-05,2]
[348447359,1736532401960,-515.69,9.552e-05,2]
[348447360,1736532401987,-507.46216314,9.552e-05,2]
[348447361,1736532402017,-500.0,9.552e-05,2]
[348447362,1736532402042,-500.0,9.552e-05,2]
[348447363,1736532402066,-500.0,9.552e-05,2]
[348447364,1736532402091,-500.0,9.552e-05,2]
[348447365,1736532402116,-621.68,9.552e-05,2]
[348447366,1736532402141,-500.0,9.552e-05,2]
[348447367,1736532402164,-500.0,9.552e-05,2]
[348447368,1736532402194,-785.25,9.552e-05,2]
[348447369,1736532402220,-500.0,9.552e-05,2]
[348447370,1736532402247,-500.0,9.552e-05,2]
[348447371,1736532402271,-500.0,9.552e-05,2]
[348447372,1736532402296,-621.90050864,9.552e-05,2]
[348447373,1736532402322,-500.0,9.552e-05,2]
[348447374,1736532402347,-521.95336906,9.552e-05,2]
[348447375,1736532402372,-500.0,9.552e-05,2]
[348447376,1736532402396,-500.0,9.552e-05,2]
[348447377,1736532402421,-899.49,9.552e-05,2]
[348447378,1736532402446,-501.03422384,9.552e-05,2]
[348447379,1736532402470,-500.0,9.552e-05,2]
[348447380,1736532402498,-500.0,9.552e-05,2]
[348447381,1736532402522,-500.0,9.552e-05,2]
[348447382,1736532402546,-500.0,9.552e-05,2]
[348447383,1736532402569,-500.0,9.552e-05,2]
[348447384,1736532402592,-1122.06,9.552e-05,2]
[348447385,1736532402617,-500.0,9.552e-05,2]
[348447386,1736532402640,-500.0,9.552e-05,2]
[348447387,1736532402667,-1243.64,9.552e-05,2]
[348447388,1736532402691,-500.0,9.552e-05,2]
[348447389,1736532402714,-500.0,9.552e-05,2]
[348447390,1736532402738,-500.0,9.552e-05,2]
[348447391,1736532402777,-500.0,9.552e-05,2]
[348447392,1736532402804,-500.0,9.552e-05,2]
[348447393,1736532402829,-500.0,9.552e-05,2]
[348447394,1736532402853,-500.0,9.552e-05,2]
[348447395,1736532402877,-500.0,9.552e-05,2]
[348447396,1736532402901,-500.0,9.552e-05,2]
[348447397,1736532402927,-2084.12,9.552e-05,2]
[348447398,1736532402953,-500.0,9.552e-05,2]
[348447399,1736532402978,-500.0,9.552e-05,2]
[348447400,1736532403009,-500.0,9.552e-05,2]
[348447401,1736532403034,-500.0,9.552e-05,2]
[348447402,1736532403064,-500.0,9.552e-05,2]
[348447403,1736532403104,-787.93,9.552e-05,2]
[348447404,1736532403128,-1322.21,9.552e-05,2]
[348447405,1736532403151,-481.91313978,9.552e-05,2]
[348447406,1736532403175,-500.0,9.552e-05,2]
[348447407,1736532403203,-500.0,9.552e-05,2]
[348447408,1736532403229,-619.79,9.552e-05,2]
[348447409,1736532403258,-500.0,9.552e-05,2]
[348447410,1736532403284,-500.0,9.552e-05,2]
[348447411,1736532403309,-500.0,9.552e-05,2]
[348447412,1736532403333,-508.98442528,9.552e-05,2]
[348447413,1736532403357,-500.0,9.552e-05,2]
[348447414,1736532403391,-500.0,9.552e-05,2]
[348447415,1736532403420,-500.0,9.552e-05,2]
[348447416,1736532403446,-1079.39,9.552e-05,2]
[348447417,1736532403472,-850.35,9.552e-05,2]
[348447418,1736532403499,-500.0,9.552e-05,2]
[348447419,1736532403523,-632.95113225,9.552e-05,2]
[348447420,1736532403548,-580.36,9.553e-05,2]
[348447421,1736532403576,-500.0,9.553e-05,2]
[348447422,1736532403601,-580.22068122,9.553e-05,2]
[348447423,1736532403626,-500.0,9.553e-05,2]
[348447424,1736532403651,-500.0,9.553e-05,2]
[348447425,1736532403675,-531.85,9.553e-05,2]
[348447426,1736532403702,-500.0,9.553e-05,2]
[348447427,1736532403728,-500.0,9.553e-05,2]
[348447428,1736532403753,-500.0,9.553e-05,2]
[348447429,1736532403778,-500.0,9.553e-05,2]
[348447430,1736532403803,-500.0,9.553e-05,2]
[348447431,1736532403829,-500.0,9.553e-05,2]
[348447432,1736532403854,-500.0,9.553e-05,2]
[348447433,1736532403880,-500.0,9.553e-05,2]
[348447434,1736532403904,-500.0,9.553e-05,2]
[348447435,1736532403929,-500.0,9.553e-05,2]
[348447436,1736532403954,-500.0,9.553e-05,2]
[348447437,1736532403978,-500.0,9.553e-05,2]
[348447438,1736532404004,-500.0,9.553e-05,2]
[348447439,1736532404029,-500.0,9.553e-05,2]
[348447440,1736532404064,-500.0,9.553e-05,2]
[348447441,1736532404089,-500.0,9.553e-05,2]
[348447442,1736532404113,-500.0,9.553e-05,2]
[348447443,1736532404140,-519.69,9.553e-05,2]
[348447444,1736532404164,-500.0,9.553e-05,2]
[348447445,1736532404190,-500.0,9.553e-05,2]
[348447446,1736532404218,-500.0,9.553e-05,2]
[348447447,1736532404242,-500.0,9.553e-05,2]
[348447448,1736532404266,-500.0,9.553e-05,2]
[348447449,1736532404292,-502.98,9.553e-05,2]
[348447450,1736532404316,-500.0,9.553e-05,2]
[348447451,1736532404340,-500.0,9.553e-05,2]
[348447452,1736532404367,-500.0,9.553e-05,2]
[348447453,1736532404392,-500.0,9.553e-05,2]
[348447454,1736532404419,-500.0,9.553e-05,2]
[348447455,1736532404443,-526.93,9.553e-05,2]
[348447456,1736532404468,-500.0,9.553e-05,2]
[348447457,1736532404495,-500.0,9.553e-05,2]
[348447458,1736532404520,-500.0,9.553e-05,2]
[348447459,1736532404546,-500.0,9.553e-05,2]
[348447460,1736532404573,-500.0,9.553e-05,2]
[348447461,1736532404601,-500.0,9.553e-05,2]
[348447462,1736532404629,-500.0,9.553e-05,2]
[348447463,1736532404657,-500.0,9.553e-05,2]
[348447464,1736532404690,-500.0,9.553e-05,2]
[348447465,1736532404719,-500.0,9.553e-05,2]
[348447466,1736532404748,-500.0,9.553e-05,2]
[348447467,1736532404775,-500.0,9.553e-05,2]
[348447468,1736532404802,-500.0,9.553e-05,2]
[348447469,1736532404829,-500.0,9.553e-05,2]
[348447470,1736532404856,-500.0,9.553e-05,2]
[348447471,1736532404885,-500.0,9.553e-05,2]
[348447472,1736532404917,-500.0,9.553e-05,2]
[348447473,1736532404944,-500.0,9.553e-05,2]
[348447474,1736532404971,-500.0,9.553e-05,2]
[348447475,1736532405001,-500.0,9.553e-05,2]
[348447476,1736532405028,-500.0,9.553e-05,2]
[348447477,1736532405057,-500.0,9.553e-05,2]
[348447478,1736532405084,-500.0,9.553e-05,2]
[348447479,1736532405112,-500.0,9.553e-05,2]